{"text_format":"1","workbook":"xlsx","n_sheets":3,"sheets":["Buoni 2016-2017","Foglio1","Foglio2"],"not_rendered":{"charts":0,"images":0,"macros":1,"external_links":0,"defined_names":2,"comments":0,"pivot_tables":0},"unopened":[],"bounds":{"document_bytes":16777216,"sheet_cells":100000,"rows_first":2000,"rows_last":500,"rows_between":2000,"halvings":0,"cell_chars":16384,"cell_head_chars":4096},"cells_cut":0,"cells_raw":0,"read":"whole","date_system":"1900"}

{"sheet":"Buoni 2016-2017","index":0,"n_rows":499,"n_cols":10,"rows_kept":499,"cut":false,"hidden":false,"merged":[[0,0,1,9]]}
["Refezione scolastica con e senza I.S.E.E. A.S. 2016/2017"]
[]
["N°","Nome Cognome Genitore","Codice Fiscale","Isee","Fascia","2° Figlio","Cognome Nome","Indirizzo","Plesso","Scuola"]
[1,"ABDALLAH ADEL","BDLDLA80B23Z352G",0,{"$f":"IF(D4=\"\",\"5^ Fascia\",IF(D4<=6500,\"1^ Fascia\",IF(AND(D4>6500,D4<=10000),\"2^ Fascia\",IF(AND(D4>10000,D4<=14000),\"3^ Fascia\",IF(AND(D4>14000,D4<=18000),\"4^ Fascia\",\"5^ Fascia\")))))","v":"1^ Fascia"},null,"ABDALLAH Aicha","Via Lauretana, 3","Sinalunga","Inf. Sin.A"]
[85,"ABDALLAH Smail","BDLSML57E29Z330M",4843.28,"1^ Fascia",null,"ABDALLAH Lina","Via dello Spedale, 17","Sinalunga","Inf. Sin.A"]
[87,"ABDALLAH Smail","BDLSML57E29Z330M",4843.28,"1^ Fascia",null,"ABDALLAH Sara"]
[86,"ABDALLAH Smail","BDLSML57E29Z330M",4843.28,"1^ Fascia",null,"ABDALLHA Rayan           ","Via dello Spedale, 17","Pieve","2/A Pieve         "]
[123,"ACHACHE MAHMOUD","CHCMMD67M14Z301C",7000,"2^ Fascia",null,"ACHACHE Halima          ","Loc. Carpineta, 62  ","Pieve","5/B Pieve         "]
[122,"ACHACHE MAHMOUD","CHCMMD67M14Z301C",7000,"2^ Fascia",null,"ACHACHE Islam","Loc. Carpineta, 62","Sinalunga","Inf. Sin.D"]
[90,"LAZAR ANGELICA HARITINA","LZRNLC74C68Z129Z",5062.3500000000004,"1^ Fascia",null,"ACONSTANTINESEI Riccardo        ","Via Paganini, 3     ","Pieve","2/A Pieve         "]
[253,null,null,null,"5^ Fascia",null,"AFFINITA Aurora          ","Via della Valle, 10/","Sinalunga","2/C Media"]
[254,null,null,null,"5^ Fascia",null,"AGNELLI Achille         ","Via Casalpiano, 43  ","Pieve","5/B Pieve         "]
[176,"ALFANO CIRO","LFNCRI73A28E131S",10324.530000000001,"3^ Fascia",null,"ALFANO Alessio         ","Via Dante Alighieri,","Pieve","5/A Pieve        "]
[3,"Civitelli Elisbetta","CVTLBT87D61A468N",0,"1^ Fascia",null,"AMENDOLA Gabriele","Via Sant'Elia, 11","Sinalunga","Inf. Sin.D"]
[258,null,null,null,"5^ Fascia",null,"AMOREVOLI Sara","Loc. Comune, 113/B - Croce di Lucignano","Sinalunga","Inf. Sin.A"]
[259,null,null,null,"5^ Fascia",null,"ANGELINI Riccardo        ","Loc. Capecchio, 137 ","Sinalunga","2/C Media"]
[88,null,null,4928.05,"1^ Fascia","2^ Figlio","ANNICCHIARICO Diego           ","Via del Crocefisso,22 ","Pieve","2/C Pieve          "]
[261,"Marano Marianna","MRNMNN80M62A509A",4928.05,"1^ Fascia",null,"ANNICCHIARICO Leonardo        ","Via del Crocefisso, 22","Pieve","5/B Pieve         "]
[18,"ANOUAR MOHAMED","NRAMMD75H08Z330J",549.91999999999996,{"$f":"IF(D19=\"\",\"5^ Fascia\",IF(D19<=6500,\"1^ Fascia\",IF(AND(D19>6500,D19<=10000),\"2^ Fascia\",IF(AND(D19>10000,D19<=14000),\"3^ Fascia\",IF(AND(D19>14000,D19<=18000),\"4^ Fascia\",\"5^ Fascia\")))))","v":"1^ Fascia"},null,"ANOUAR Akram","Via Poggio del Mezzo, 331","Sinalunga","Inf. Sin.C"]
[226,"MIRRA KATIA","MRRKTA79R65A468Y",14817.46,"4^ Fascia",null,"ANTONINI Alessandro","Via Paganini, 4/A","Sinalunga","Inf. Sin.C"]
[262,null,null,null,"5^ Fascia",null,"ARCI Tommaso         ","Via del Tozzo, 20 Lucignano (AR)","Sinalunga","2/C Media"]
[146,"CRIVELLO Angela","CRVNGL78H53G273U",8498.4599999999991,"2^ Fascia",null,"ARCIDIACONO Giada           ","Via Golgi, 2        ","Pieve","4/A Pieve         "]
[178,"ARENARE LEONARDO","RNRLRD81S15E9190",10471.61,"3^ Fascia",null,"ARENARE Alessia","Località Santarello, 142/C","Sinalunga","Inf. Sin.D"]
[171,"BALDARES IMMACOLATA","BLDMCL76E41F839A",9921.6299999999992,"2^ Fascia",null,"AUTIERO Giandavide","Via Eduardo De Filippo, 8","Sinalunga","Inf. Sin.B"]
[76,"MOUTAWADI HAFIDA","MTWHFD77L54Z330E",4608.13,"1^ Fascia",null,"AZZIZ Walid","Loc. Capannina, 126","Sinalunga","Inf. Sin.A"]
[263,null,null,null,"5^ Fascia",null,"BACCHESCHI Margherita      ","Via A. Rossi, 1     ","Sinalunga","3/C Media       "]
[212,"BADAGLIALACQUA","BDGSST78M31A794S",12781.07,"3^ Fascia",null,"BADAGLIALACQUA Sara","Via Paganini, 4/B","Sinalunga","Inf. Sin.B"]
[239,"BAFFONI FABRIZIO","BFFFRZ6T13F592D",17330.009999999998,"4^ Fascia",null,"BAFFONI Emma            ","Via W. Tobagi, 17   ","Pieve","2/C Pieve          "]
[238,"BAFFONI FABRIZIO","BFFFRZ6T13F592D",17330.009999999998,"4^ Fascia",null,"BAFFONI Viola","Via W. Tobagi, 17","Sinalunga","Inf. Sin.D"]
[264,null,null,null,"5^ Fascia",null,"BAINI Alice           ","Via Nello Boscagli, 15","Sinalunga","2/C Media"]
[265,null,null,null,"5^ Fascia",null,"BAIOCCO Rebecca         ","Via Mascagni, 2     ","Pieve","4/B Pieve          "]
[266,null,null,null,"5^ Fascia","2^ Figlio","BAIOCCO Virginia        ","Via Mascagni, 2     ","Pieve","2/B Pieve       "]
[267,null,null,null,"5^ Fascia",null,"BALDINI Niccolò","Via degli Etruschi, 13","Sinalunga","Inf. Sin.E"]
[268,null,null,null,"5^ Fascia",null,"BALDONI Hena            ","Borgo San Marcellino","Pieve","3/B Pieve          "]
[223,"RICCIARDI SANDRA","RCCSDR71M51L219G",14510.68,"4^ Fascia",null,"BALLARINO Beatrice"]
[21,"SERGIO ANNA","SRGNNA80B59F839O",835.76,"1^ Fascia","2^ Figlio","BALZANO Flavio          ","Viale Trieste, 172  ","Sinalunga","2/C Media"]
[20,"SERGIO ANNA","SRGNNA80B59F839O",835.76,"1^ Fascia",null,"BALZANO Giuseppina      ","Viale Trieste, 172  ","Sinalunga","3/C Media       "]
[269,null,null,null,"5^ Fascia",null,"BARBETTI Sofia","Via Belvedere, 3","Sinalunga","Inf. Sin.B"]
[270,null,null,null,"5^ Fascia",null,"BARDELLI Vittoria        ","Via Aldo Moro, 46   ","Sinalunga","1/C Media       "]
[177,"MARCHI CLAUDIA","MRCCLD70H69I726W",10465.74,"3^ Fascia",null,"BARLUZZI Denise","Via Don Minzoni,57","Bettolle","Inf. Bett.A"]
[271,null,null,null,"5^ Fascia",null,"BARNESCHI Gioele","Loc. S. Eusebio, 1165","Sinalunga","Inf. Sin.A"]
[17,"ATIF GHIZLANE","TFAGZL89M56Z330G",0,"1^ Fascia",null,"BAROUR Rayan","Via Gramsci, 73/B","Bettolle","Inf. Bett.A"]
[272,null,null,null,"5^ Fascia",null,"BARTOLI Diego","Casina di Sopra, 12/A ","Sinalunga","Inf. Sin.F"]
[273,null,null,null,"5^ Fascia",null,"BARTOLI Maristella      ","Via N. Boscagli, 12 ","Pieve","2/B Pieve       "]
[189,"BASTREGHI LUCIO","BSTLCU72P28D649Y",11166.67,"3^ Fascia",null,"BASTREGHI Amedeo","Via Alberto Moravia, 10","Sinalunga","Inf. Sin.E"]
[274,null,null,null,"5^ Fascia",null,"BELIGNI Lorenzo","Via Poggio Basso, 334","Sinalunga","Inf. Sin.C"]
[165,"BELMONTE Marco","BLMMRC78C26F205R",9431.06,"2^ Fascia","2^ Figlio","BELMONTE Alessandro      ","Via Enzo Ferrari, 30","Pieve","5/B Pieve         "]
[166,"BELMONTE Marco","BLMMRC78C26F205R",9431.06,"2^ Fascia",null,"BELMONTE Andrea          ","Via Enzo Ferrari, 30","Sinalunga","2/C Media"]
[22,"BENIGNI Francesco","BNGFNC71H10D649F",947.22,"1^ Fascia",null,"BENIGNI Francesca","Via Casalpiano, 29","Sinalunga","Inf. Sin.A"]
[2,"CALABRò SILVIA","CLBSLV90C43A564U",0,"1^ Fascia",null,"BENNATI Lorenzo","Via Giovanni Paolo II, 5","Bettolle","Inf. Bett.A"]
[275,null,null,null,"5^ Fascia",null,"BERNARDINI Alessio         ","Loc. Molinello, 102/","Pieve","3/A Pieve          "]
[276,null,null,null,"5^ Fascia","2^ Figlio","BERNARDINI Ami'            ","Loc. Molinello, 102/","Pieve","1^ Pieve         "]
[277,null,null,null,"5^ Fascia",null,"BIAGIOTTI Ilaria          ","Via Enzo Ferrari, 34","Pieve","4/B Pieve          "]
[278,null,null,null,"5^ Fascia","2^ Figlio","BIAGIOTTI Marco Luis      ","Via E. Ferrari, 34  ","Pieve","3/A Pieve          "]
[279,null,null,null,"5^ Fascia","2^ Figlio","BIANCHINI Leonardo        ","Via del Rigo, 26    ","Pieve","5/A Pieve        "]
[280,null,null,null,"5^ Fascia",null,"BIANCHINI Lorenzo         ","Via del Rigo, 26    ","Sinalunga","3/C Media       "]
[281,null,null,null,"5^ Fascia",null,"BIGLIAZZI Maria Vittoria  ","Via Leonardo Sciasci","Sinalunga","3/C Media       "]
[282,null,null,null,"5^ Fascia",null,"BINDI Sofia           ","Via Cavour, 55      ","Pieve","3/B Pieve          "]
[283,null,null,null,"5^ Fascia",null,"BOCCINI Alessandro","Via Pablo Neruda,1","Bettolle","Inf. Bett.A"]
[284,null,null,null,"5^ Fascia",null,"BOMBA Benedetta       ","Via del Rigo, 22    ","Pieve","5/A Pieve        "]
[285,null,null,null,"5^ Fascia","2^ Figlio","BOMBA Giuly           ","Via del Rigo, 22    ","Pieve","2/C Pieve          "]
[287,null,null,null,"5^ Fascia",null,"BOSCAGLI Giulia          ","Via O. Morelli, 19     ","Pieve","1^ Pieve         "]
[286,null,null,null,"5^ Fascia",null,"BOSCAGLI Guido","Via Leonardo Sciascia, 14","Sinalunga","Inf. Sin.A"]
[288,null,null,null,"5^ Fascia",null,"BOSCAGLI Matilde         ","Via Privata, 13     ","Sinalunga","1/C Media       "]
[289,null,null,null,"5^ Fascia",null,"BRACCIALI Davide          ","Piazza Biancalana, 1","Sinalunga","3/C Media       "]
[119,"BRANCACCIO GIUSEPPE","BRNGPP83S22L245F",6826.96,"2^ Fascia",null,"BRANCACCIO Giovanni","Via degli Etruschi, 2","Sinalunga","Inf. Sin.D"]
[290,"BRANCACCIO GIUSEPPE","BRNGPP83S22L245F",6826.96,"2^ Fascia",null,"BRANCACCIO Giovanni","Via degli Etruschi, 2","Sinalunga","Inf. Sin.D"]
[199,"ZACCHEI Susanna","ZCCSNN63B54A468R",11544.48,"3^ Fascia",null,"BRANDINI Anna","Via delle Caselle, 125 Bettolle","Bettolle","Inf. Bett.A"]
[200,"ZACCHEI Susanna","ZCCSNN63B54A468R",11544.48,"3^ Fascia",null,"BRANDINI Guido","Via delle Caselle, 125 Bettolle","Bettolle","Inf. Bett.A"]
[291,null,null,null,"5^ Fascia",null,"BRANDINI Vittoria","Loc. Cave, 91/A","Sinalunga","Inf. Sin.E"]
[292,null,null,null,"5^ Fascia",null,"BRARDI Nico","Via Ravenna, 56","Bettolle","Inf. Bett.D"]
[43,"PADOVANI LARA","PDVLRA88R67D548C",3088.93,"1^ Fascia",null,"BRESCIANI Leonardo        ","Via Fiume, 56       ","Pieve","3/B Pieve          "]
[295,null,null,null,"5^ Fascia","2^ Figlio","BROGI Erica           ","Via Dante Alighieri,13","Pieve","5/A Pieve        "]
[294,null,null,null,"5^ Fascia",null,"BROGI Lorenzo","Via E. Fermi, 22","Sinalunga","Inf. Sin.A"]
[293,null,null,null,"5^ Fascia",null,"BROGI Sara","Bachelet,53","Bettolle","Inf. Bett.A"]
[296,null,null,null,"5^ Fascia",null,"BROGI Viola           ","Via Dante, 13       ","Sinalunga","2/C Media"]
[298,null,null,null,"5^ Fascia",null,"BRUNACCI Leonardo        ","Loc. Carpineta, 63  ","Pieve","4/A Pieve         "]
[300,null,null,null,"5^ Fascia",null,"BRUSCHI Matteo","Piazza Garibaldi, 45","Sinalunga","Inf. Sin.A"]
[19,"CACACE CRISTINA","CCCCST83E54A468U",823.14,"1^ Fascia",null,"BUCALO Anastasia       ","Viale Trieste, 187  ","Sinalunga","2/C Media"]
[301,null,null,null,"5^ Fascia",null,"BUCCHI O BURCHI  Alice           ","Via dei Fossi, 10   ","Sinalunga","2/C Media"]
[302,null,null,null,"5^ Fascia",null,"BUFALINI Caterina        ","Via G. Rossa, 20    ","Pieve","2/B Pieve       "]
[304,null,null,null,"5^ Fascia",null,"BUI Ilaria          ","Via Leonardo Sciascia 53","Sinalunga","3/C Media       "]
[187,"BUONDONNO DOMENICO","BNDGDI08H67F592S",11113.9,{"$f":"IF(D83=\"\",\"5^ Fascia\",IF(D83<=6500,\"1^ Fascia\",IF(AND(D83>6500,D83<=10000),\"2^ Fascia\",IF(AND(D83>10000,D83<=14000),\"3^ Fascia\",IF(AND(D83>14000,D83<=18000),\"4^ Fascia\",\"5^ Fascia\")))))","v":"3^ Fascia"},null,"BUONDONNO Giada           ","Via Trieste, 183    ","Pieve","3/A Pieve          "]
[188,"BUONDONNO DOMENICO","BNDGDI08H67F592S",11113.9,"3^ Fascia","2^ Figlio","BUONDONNO Sofia           ","Via Trieste, 183    ","Pieve","1^ Pieve         "]
[305,null,null,null,"5^ Fascia",null,"BURACCHI Mattia","Via Puccini, 211 B","Bettolle","Inf. Bett.B"]
[306,null,null,null,"5^ Fascia",null,"BURACCHI Veronica        ","Via W. Tobagi, 16   ","Pieve","4/A Pieve         "]
[307,null,null,null,"5^ Fascia",null,"BURACCHINI Rachele         ","Via Umberto I, 23   ","Pieve","4/B Pieve          "]
[213,"MESSERE CLARA","MSSCLR80R45A468T",12865.01,"3^ Fascia",null,"BURGASSI Lorenzo","Via Paganini, 4/B","Sinalunga","Inf. Sin.D"]
[241,"GRAZI SARA","GRZSRA81D62A468X",17969.259999999998,"4^ Fascia","2^ Figlio","BURRONI Carlotta        ","Via Emoriccia, 283  ","Pieve","1^ Pieve         "]
[242,"GRAZI SARA","GRZSRA81D62A468X",17969.259999999998,"4^ Fascia",null,"BURRONI Christian       ","Via Emoriccia, 283  ","Pieve","3/A Pieve          "]
[210,"BURRONI GIANNI","BRRGNN72E03I726L",12065.49,"3^ Fascia",null,"BURRONI Gino            ","Borgo San Marcellino","Pieve","5/B Pieve         "]
[167,"BUSHI GEZIM","BHGZM80B25Z100G",9513.8799999999992,"2^ Fascia",null,"BUSHI Juri","Via dell'Opera, 2/A","Sinalunga","Inf. Sin.F"]
[227,"MASUCCI DAIANA","MSCDNA77T56A468A",15014.08,"4^ Fascia",null,"CACCAMO Raul            ","Loc. Capacciola, 193","Pieve","2/A Pieve         "]
[308,null,null,null,"5^ Fascia",null,"CALISSE Costanza        ","Via degli Archi, 2  ","Pieve","1^ Pieve         "]
[309,null,null,null,"5^ Fascia",null,"CANAPINI Giacomo         ","Via Privata, 1      ","Pieve","3/B Pieve          "]
[38,"CHONA ORTIZ SANDRA LUNEY","CHNSDR72S65Z604R",2542.12,"1^ Fascia",null,"CANTERO CHONA Karol Yessenia","Via Caselle Alte, 99","Bettolle","Inf. Bett.B"]
[310,null,null,null,"5^ Fascia",null,"CAPOSCIUTTI Lorenzo         ","Via Fiume 38a","Sinalunga","3/C Media       "]
[128,"CAPOSCIUTTI MARCO","CPSMRC78S06A468K",7177.15,"2^ Fascia",null,"CAPOSCIUTTI Matteo","Via dei Colli, 12","Sinalunga","Inf. Sin.A"]
[145,"Zullo Gerarda","ZLLGRD90S43A783B",8435.69,"2^ Fascia",null,"CAPOZZI Christian","Via Rigaiolo, 46","Sinalunga","Inf. Sin.A"]
[311,null,null,null,"5^ Fascia",null,"CAPPA Ginevra         ","Via Umberto I, 53   ","Pieve","4/A Pieve         "]
[313,null,null,null,"5^ Fascia",null,"CARA Nico            ","Via Trento, 186/A   ","Pieve","5/B Pieve         "]
[314,null,null,null,"5^ Fascia",null,"CARCAVALLO Noemi           ","Via Ruffilli, 9     ","Pieve","1^ Pieve         "]
[315,null,null,null,"5^ Fascia",null,"CARONI Andrea","Via Pertini, 21","Bettolle","Inf. Bett.B"]
[316,null,null,null,"5^ Fascia",null,"CASSIOLI Michele","Via della Speranza, 1","Sinalunga","Inf. Sin.E"]
[317,null,null,null,"5^ Fascia",null,"CASTELLANI Giacomo         ","Via E. Fermi 13","Pieve","4/B Pieve          "]
[184,"PERROTTA FRANCESCA","PRRFNC80L69F839X",10802.95,"3^ Fascia",null,"CASTIELLO Teresa          ","Via Colonna, 2/E    ","Pieve","3/A Pieve          "]
[320,null,null,null,"5^ Fascia",null,"CERRETANI Mirko           ","Via E. de Filippo, 2","Sinalunga","2/C Media"]
[321,null,null,null,"5^ Fascia",null,"CHIRICHIELLO Emma            ","Loc. Acquazzolo, 153","Pieve","1^ Pieve         "]
[322,null,null,null,"5^ Fascia",null,"CIANETTI Lorenzo","Via Cassia, 28","Bettolle","Inf. Bett.A"]
[323,null,null,null,"5^ Fascia",null,"CIMAROSTI David","Via G. Matteotti, 65","Sinalunga","Inf. Sin.C"]
[42,"ZARA ANGELA","ZRANGL85L62A512I",3069,"1^ Fascia",null,"CIRINO Giovanni","Via Martire della Libertà, 16","Sinalunga","Inf. Sin.C"]
[153,"COLANGELI Alberto","CLNLRT72E08H501L",8976.7900000000009,"2^ Fascia",null,"COLANGELI Luca","Viale Gramsci, 10","Sinalunga","Inf. Sin.B"]
[155,"COLANGELI Alberto","CLNLRT72E08H501L",8976.7900000000009,"2^ Fascia",null,"COLANGELI Sara            ","Viale Antonio Gramsc","Pieve","1^ Pieve         "]
[154,"COLANGELI Alberto","CLNLRT72E08H501L",8976.7900000000009,"2^ Fascia",null,"COLANGELI Stella","Viale Gramsci, 10","Sinalunga","Inf. Sin.A"]
[325,null,null,null,"5^ Fascia",null,"CONOSCITORE Niccolo'        ","Via Nuova, 43       ","Pieve","2/C Pieve          "]
[326,null,null,null,"5^ Fascia",null,"CONTE Domenico","Via E. Berlinguer, 27","Bettolle","Inf. Bett.A"]
[23,"CORDA GIORDANO","CRDGDN/\"R\"=D(\"/W",1106.99,"1^ Fascia",null,"CORDA Jessica         ","Via degli Orti 51","Sinalunga","1/C Media       "]
[328,null,null,null,"5^ Fascia",null,"CRESTI Antonio         ","Via del Rigo, 8     ","Pieve","4/A Pieve         "]
[329,null,null,null,"5^ Fascia","2^ Figlio","CRESTI Francesco       ","Via del Rigo, 8     ","Pieve","4/B Pieve          "]
[330,null,null,null,"5^ Fascia","2^ Figlio","CRESTI Giovanni        ","Via del Rigo, 8     ","Pieve","3/B Pieve          "]
[331,null,null,null,"5^ Fascia","2^ Figlio","CRESTI Marco           ","Loc. Reddo Basso, 22","Pieve","2/B Pieve       "]
[332,null,null,null,"5^ Fascia",null,"CRESTI Veronica        ","Loc. Reddo Basso, 22","Pieve","4/A Pieve         "]
[334,null,null,null,"5^ Fascia",null,"CRISTINO Mathilde        ","Loc. Reddo, 206/A   ","Pieve","4/A Pieve         "]
[335,null,null,null,"5^ Fascia",null,"CURELARU Cristian Vlad   ","Via Belvedere, 27   ","Sinalunga","1/C Media       "]
[336,null,null,null,"5^ Fascia",null,"D'AGOSTINO Ines","Via Rossi, 7","Sinalunga","Inf. Sin.B"]
[163,null,null,9385.34,"2^ Fascia",null,"D'ALESSIO Davide          ","Viale Gramsci, 10   ","Pieve","5/B Pieve         "]
[337,null,null,null,"5^ Fascia",null,"D'AMBRA Annamaria","Via Privata","Sinalunga","Inf. Sin.D"]
[46,"TURINI ROBERTINA","TRNRRT71H60Z112M",3269.93,"1^ Fascia","2^ Figlio","D'ANTONIO Crystopher      ","Borgo San Marcellino","Sinalunga","2/C Media"]
[45,"TURINI ROBERTINA","TRNRRT71H60Z112M",3269.93,"1^ Fascia",null,"D'ANTONIO Jonathan        ","Borgo San Marcellino","Sinalunga","3/C Media       "]
[338,null,null,null,"5^ Fascia",null,"DE GORI PANNILINI Claudia         ","Loc. Belsedere      ","Sinalunga","2/C Media"]
[339,null,null,null,"5^ Fascia",null,"DE GREGORIO  Francesco","Loc Busso,75","Sinalunga","Inf. Sin.A"]
[340,null,null,null,"5^ Fascia",null,"DE GREGORIO Alessandra      ","Loc. Busso, 75      ","Pieve","3/B Pieve          "]
[342,null,null,null,"5^ Fascia",null,"DE ROSA Martina         ","Via Palazzolo, 40/A ","Pieve","2/A Pieve         "]
[341,null,null,null,"5^ Fascia",null,"DE ROSA Samuele","Via Palazzolo, 40/A","Sinalunga","Inf. Sin.A"]
[344,null,null,null,"5^ Fascia",null,"DEL GALLO Andrea","Via E. Berlinguer,13","Bettolle","Inf. Bett.A"]
[345,null,null,null,"5^ Fascia",null,"DEL GALLO Cristian","Via E. Berlinguer, 13","Bettolle","Inf. Bett.A"]
[27,"DEMETRIO MELISSA","DMTMSS13T57F592Q",1375.61,"1^ Fascia",null,"DEMETRIO  Melissa","Via Chico Mendez,25","Bettolle","Inf. Bett.A"]
[39,"DERMANI ALBEN","DRMLBN74C02Z100T",2596.1,"1^ Fascia",null,"DERMANI Rayen           ","Via Enrico de Nicola","Pieve","4/A Pieve         "]
[140,"Dessì Andrea","DSSNDR83C08G113E",8139.84,"2^ Fascia",null,"DESSI' Federico","Via E. Ferrari 12 Sinalunga","Pieve","Primaria"]
[346,null,null,null,"5^ Fascia",null,"DI CURZIO Giorgia         ","Via della Resistenza 12","Pieve","1^ Pieve         "]
[47,"DI LEO Giovanni","DLIGNN76E01A881F",3402.94,"1^ Fascia","2^ Figlio","DI LEO Angelica        ","Via Edoardo de Filippo 10","Pieve","1^ Pieve         "]
[347,null,null,null,"5^ Fascia",null,"DI LEO Aurora          ","Via Trento, 137     ","Sinalunga","1/C Media       "]
[48,"DI LEO Giovanni","DLIGNN76E01A881F",3402.94,"1^ Fascia",null,"DI LEO Samuel Ezechiele","Via Edoardo de Filippo 10","Pieve","4/A Pieve         "]
[151,"GARGIULO PASQUALINA","GRGPQL77B66G813B",8829.4599999999991,"2^ Fascia",null,"DI LEVA Pietro Paolo    ","Via Napoli, 19/B    ","Sinalunga","3/C Media       "]
[220,"DI MARCO NICCOLO'","DMRNCL96L06C319D",14044.39,{"$f":"IF(D145=\"\",\"5^ Fascia\",IF(D145<=6500,\"1^ Fascia\",IF(AND(D145>6500,D145<=10000),\"2^ Fascia\",IF(AND(D145>10000,D145<=14000),\"3^ Fascia\",IF(AND(D145>14000,D145<=18000),\"4^ Fascia\",\"5^ Fascia\")))))","v":"4^ Fascia"},null,"DI MARCO Giulia          ","Via Nencetti, 38    ","Pieve","3/B Pieve          "]
[348,null,null,null,"5^ Fascia",null,"DI RENZONE Cristian        ","Via della Pietraia, 75","Sinalunga","2/C Media"]
[152,"DIBRA LEONARD","DBRDLN3C31F592B",8974.59,"2^ Fascia",null,"DIBRA Daniel Nuri","Via Napoli, 10","Sinalunga","Inf. Sin.A"]
[352,null,null,null,"5^ Fascia",null,"DONNINI Pietro Maria","Via Traversa Valdichiana est,134","Bettolle","Inf. Bett.A"]
[219,"DRINGOLI CHRISTIAN","DRNCRS76S14C085L",13954.64,"3^ Fascia",null,"DRINGOLI Benedetta","Via Casalpiano, 29/B","Sinalunga","Inf. Sin.E"]
[353,null,null,null,"5^ Fascia",null,"DUMITRU Laura           ","Via della Stazione, ","Pieve","4/B Pieve          "]
[24,"EDIANI BOUCHAIB","DNEBHB65A01Z330B",1175.44,"1^ Fascia",null,"EDIANI Abdechahid      ","Via Amendola, 25    ","Pieve","5/A Pieve        "]
[357,null,null,null,"5^ Fascia",null,"FALCIANI Alessandro      ","Via Enzo Ferrari, 12","Pieve","4/A Pieve         "]
[358,null,null,null,"5^ Fascia",null,"FARALLI Enea","Via Che Guevara, 24","Bettolle","Inf. Bett.B"]
[359,null,null,null,"5^ Fascia",null,"FARELLA Francesco       ","Via Teso, 12/B      ","Pieve","2/C Pieve          "]
[5,"FARSETTI LUCA","FRSSLCU71T31A468R",0,"1^ Fascia",null,"FARSETTI Cecilia         ","Via Colonna, 89     ","Pieve","3/B Pieve          "]
[6,"FARSETTI LUCA","FRSSLCU71T31A468R",0,"1^ Fascia","2^ Figlio","FARSETTI Mattia          ","Via Colonna, 89     ","Pieve","1^ Pieve         "]
[228,"PROSA Daniela","PRSDNL79R52G273,F",15118.91,"4^ Fascia",null,"FERACE Samuele","Via G. Matteotti, 71","Sinalunga","Inf. Sin.A"]
[229,"PROSA Daniela","PRSDNL79R52G273,F",15118.91,"4^ Fascia",null,"FERACE Veronica        ","Via Matteotti, 71   ","Pieve","3/A Pieve          "]
[360,null,null,null,"5^ Fascia",null,"FERRARI Elisa           ","Via Ciro Pinsuti, 31","Sinalunga","3/C Media       "]
[361,null,null,null,"5^ Fascia",null,"FERRI Maikol          ","Via Trento, 88      ","Sinalunga","2/C Media"]
[362,null,null,null,"5^ Fascia",null,"FERRONI Edoardo","Via Che Guevara, 1","Bettolle","Inf. Bett.D"]
[363,null,null,null,"5^ Fascia",null,"FERRONI Ilaria ","Via Che Guevara,1","Bettolle","Inf. Bett.A"]
[364,null,null,null,"5^ Fascia","2^ Figlio","FIERLI Francesco       ","Via Larga, 20       ","Pieve","1^ Pieve         "]
[365,null,null,null,"5^ Fascia",null,"FIERLI Luigi           ","Via Larga, 20       ","Pieve","1^ Pieve         "]
[198,"FINOCCHIARO Antonio","FNCNTN77M11C351Y",11541.83,"3^ Fascia",null,"FINOCCHIARO Francesco","Via del borro, 12","Sinalunga","Inf. Sin.E"]
[366,null,null,null,"5^ Fascia",null,"FLAVIANO Alessandro","Via E. Ferrari, 28","Sinalunga","Inf. Sin.A"]
[79,"SOAVE VALERIA","SVOVLR77L51H501J",4692.92,"1^ Fascia",null,"FOIANESI  Daniele","Via Rigaiolo, 64","Sinalunga","Inf. Sin.A"]
[367,null,null,null,"5^ Fascia",null,"FONTANI Elisa           ","Via Belvedere, 6    ","Sinalunga","1/C Media       "]
[368,null,null,null,"5^ Fascia",null,"FORMISANO Michele","Via Bologna, 87","Bettolle","Inf. Bett.A"]
[369,null,null,null,"5^ Fascia","2^ Figlio","FRANCINI Giulia          ","Via Nuova, 42/a      ","Pieve","1^ Pieve         "]
[370,null,null,null,"5^ Fascia",null,"FRANCINI Viola           ","Via Nuova, 42/a     ","Pieve","3/A Pieve          "]
[371,null,null,null,"5^ Fascia",null,"FRASCI Elena           ","Via O. Morelli, 16  ","Pieve","5/B Pieve         "]
[372,null,null,null,"5^ Fascia",null,"FRASSINELLI Francesco       ","Via Boito, 13       ","Pieve","2/C Pieve          "]
[373,null,null,null,"5^ Fascia",null,"FRULLINI Noemi           ","Via della Resistenza 26","Pieve","2/A Pieve         "]
[159,"FUSANO ROBERTO","FSNRRT82B13B619G",9265.77,"2^ Fascia","\\","FUSANO Chiara          ","Loc. Santarello 142a","Pieve","2/C Pieve          "]
[374,null,null,null,"5^ Fascia",null,"GABBRIELLI Ester           ","Loc. Casacce, 2     ","Pieve","2/B Pieve       "]
[111,"BRANCACCIO AGNESE","BRNGNS80H46L245N",6433.05,"1^ Fascia",null,"GARGIULO Giovanni","Via Napoli, 19/A","Sinalunga","Inf. Sin.A"]
[63,"GARGIULO GRETA","GRGGRT12A42I726E",4058.98,"1^ Fascia",null,"GARGIULO Greta","Via degli Etruschi, 16","Sinalunga","Inf. Sin.C"]
[80,"SOAVE VALERIA","SVOVLR77L51H501J",4692.92,"1^ Fascia",null,"GASPARRI Alberto         ","Via Rigaiolo, 67    ","Pieve","2/A Pieve         "]
[160,"GAVIOLI MAZZA EDOARDO","GVLDRD79H19H501J",9275.1299999999992,"2^ Fascia",null,"GAVIOLI MAZZA Davide          ","Via Colonna, 2h     ","Pieve","2/C Pieve          "]
[375,null,null,null,"5^ Fascia",null,"GAZZETTA Francesco","Via Boito 10","Bettolle","Inf. Bett.A"]
[376,null,null,null,"5^ Fascia",null,"GENNARI Virginia        ","Via della Pietraia, ","Pieve","2/B Pieve       "]
[216,"TANEV TANIO ROUSSEV","TNVTRS85D02Z104W",13546.4,"3^ Fascia",null,"GENOVA Kristina Stefanova","Via Pio La Torre,5","Bettolle","Inf. Bett.A"]
[377,null,null,null,"5^ Fascia",null,"GERMANI Ettore          ","Borgo San Marcellino","Sinalunga","1/C Media       "]
[378,null,null,null,"5^ Fascia",null,"GHINAZZI Emma","Via del Cassero, 27","Sinalunga","Inf. Sin.E"]
[147,"RUSCITTO Raffaella Zalia","RSCRFL72M60I158S",8542.26,"2^ Fascia",null,"GHINELLI Angelica Lucia  ","Piazza XX Settembre,","Pieve","2/B Pieve       "]
[380,null,null,null,"5^ Fascia",null,"GIANNINI Alessandro","Via E. Berlinguer,19","Bettolle","Inf. Bett.A"]
[381,null,null,null,"5^ Fascia",null,"GIANNINI Stella          ","Via Umbeto I,32/B   ","Pieve","2/C Pieve          "]
[379,null,null,null,"5^ Fascia",null,"GIANNINI Viola","Via Siena, 2/A","Bettolle","Inf. Bett.A"]
[67,"GILL AMANDEEP SINGH","GLLMD79S14Z222T",4130.96,"1^ Fascia",null,"GILL Kushveen Kaur   ","Via Trento, 196/C   ","Pieve","4/A Pieve         "]
[201,"FORTINI Martina","FRTMTN87T64D077K",11604.9,"3^ Fascia",null,"GIORGI Alice","Loc. Santerello, 139/A","Sinalunga","Inf. Sin.C"]
[202,"FORTINI Martina","FRTMTN87T64D077K",11604.9,"3^ Fascia",null,"GIORGI Bianca","Loc. Santarello, 139/A","Sinalunga","Inf. Sin.C"]
[382,null,null,null,"5^ Fascia",null,"GISO Gioia","Via Vallina, 127/A","Sinalunga","Inf. Sin.D"]
[30,"GJAFERI RAFIS","GJFRS90S14Z160E",1641.67,"1^ Fascia",null,"GJAFERI Benjamin","Via Ciro Pinsuti,24/a","Sinalunga","Inf. Sin.A"]
[186,"Gon Fabio","GNOFBA61P04F356A",11078.57,"3^ Fascia",null,"GON Nicolas         ","Via Montegrappa 4    ","Pieve","5/A Pieve        "]
[383,null,null,null,"5^ Fascia",null,"GON Nicolas         ","Via Montegrappa 4    ","Pieve","5/A Pieve        "]
[384,null,null,null,"5^ Fascia",null,"GONZI Davide          ","Loc. Pietreto, 42/D ","Pieve","4/B Pieve          "]
[386,null,null,null,"5^ Fascia",null,"GORACCI Giada","Via Rosselli, 9","Bettolle","Inf. Bett.B"]
[385,null,null,null,"5^ Fascia",null,"GORACCI Giulio","Via Boito, 11","Bettolle","Inf. Bett.C"]
[8,"GORDE SACIP","GRDSCP74L05Z118E",0,"1^ Fascia",null,"GORDE Ernes           ","Via Trento 229a","Sinalunga","3/C Media       "]
[209,"FAENZI NADIA","FNZNDA74D47A468W",12023.09,"3^ Fascia",null,"GORELLI Pietro","Via Trento, 149","Sinalunga","Inf. Sin.B"]
[387,null,null,null,"5^ Fascia",null,"GRAPPI Gabriele        ","Via Niccolo' Paganini 24","Pieve","4/A Pieve         "]
[157,"GRASSI GIANLUCA","GRSGLC78M02F402T",9112.76,"2^ Fascia",null,"GRASSI Gaia","Via Edoardo de Filippo, 2","Sinalunga","Inf. Sin.F"]
[158,"GRASSI GIANLUCA","GRSGLC78M02F402T",9112.76,"2^ Fascia",null,"GRASSI Sofia           ","Via Eduardo de Filippo 2","Pieve","3/A Pieve          "]
[388,null,null,null,"5^ Fascia",null,"GRAZI Alessandro","Via C. Pavese, 2","Bettolle","Inf. Bett.B"]
[390,null,null,null,"5^ Fascia",null,"GRAZIANI Alessandro      ","Via dell' Olmo, 5   ","Pieve","2/C Pieve          "]
[389,null,null,null,"5^ Fascia",null,"GRAZIANI Gabriele","Via dell' Olmo, 5","Sinalunga","Inf. Sin.E"]
[217,"GUEYE FATY","GYUFTY77C44Z343B",13925.36,"3^ Fascia",null,"GUEYE Mame Diarra     ","Via Licio Nencetti, 26","Pieve","3/A Pieve          "]
[218,"GUEYE FATY","GYUFTY77C44Z343B",13925.36,{"$f":"IF(D209=\"\",\"5^ Fascia\",IF(D209<=6500,\"1^ Fascia\",IF(AND(D209>6500,D209<=10000),\"2^ Fascia\",IF(AND(D209>10000,D209<=14000),\"3^ Fascia\",IF(AND(D209>14000,D209<=18000),\"4^ Fascia\",\"5^ Fascia\")))))","v":"3^ Fascia"},"2^ Figlio","GUEYE Serigne Fallou  ","Via Licio Nencetti, 26 ","Pieve","1^ Pieve         "]
[169,"HAKORJA GENCI","HKRGNC70R12Z100Q",9611.8799999999992,"2^ Fascia",null,"HAKORJA Denis           ","Via Amendola, 25    ","Pieve","3/B Pieve          "]
[9,"HAMED Saber","HMDSBR77B24Z352S",0,"1^ Fascia",null,"HAMED Hiba","Via Grosseto, 4","Sinalunga","Inf. Sin.D"]
[10,"HAMED Saber","HMDSBR77B24Z352S",0,"1^ Fascia",null,"HAMED Youssef         ","Via Grosseto, 4     ","Pieve","1^ Pieve         "]
[49,"HERGHELEGIU MELISSA","HRGMSS12R44F592Q",3494.1,"1^ Fascia",null,"HERGHELEGIU Melissa","Via Giotto, 3","Bettolle","Inf. Bett.A"]
[12,"HOUSSNI ADDELKARIM","HSSBLK70A05Z330Z",0,"1^ Fascia",null,"HOUSSNI Oussama         ","Viale Trieste, 193  ","Sinalunga","3/C Media       "]
[11,"HOUSSNI ADDELKARIM","HSSBLK70A05Z330Z",0,"1^ Fascia","2^ Figlio","HOUSSNI Wissam     ","Viale Trieste,193   ","Pieve","1^ Pieve         "]
[72,"HOXHA DESHIR","HXHDHR91A07Z100E",4207.6499999999996,"1^ Fascia",null,"HOXHA Eleonora","domicilio Via Cavour, 24","Sinalunga","Inf. Sin.A"]
[94,"IBRA SUHADA","BRISHD85A48Z160Y",5335.41,"1^ Fascia",null,"IBRA Adina           ","Via Dante, 11","Pieve","5/A Pieve        "]
[95,"IBRA SUHADA","BRISHD85A48Z160Y",5335.41,"1^ Fascia","2^ Figlio","IBRA Ines            ","Via Dante, 11       ","Pieve","2/C Pieve          "]
[196,"SCOPAIOLI ANGELICA","SCPNLC90E53A468I",11457.89,"3^ Fascia",null,"IORILLO Noemi           ","Via della Montagna, 31 ","Pieve","2/B Pieve       "]
[392,null,null,null,"5^ Fascia",null,"ISCHI Niccolo'","Loc. Poggigialli, 146","Sinalunga","Inf. Sin.A"]
[108,"VASILEV IVAN IVANOV","VSLLVVN83P21Z104H",6242.84,"1^ Fascia",null,"IVANOV TIHOMIR IVANOV","Via Togliatti, 23 Bettolle","Bettolle","Infanzia"]
[28,"Izzo Giuseppe","ZZIGPP77E01B963D",1562.03,"1^ Fascia",null,"IZZO DAYANA","Via Roma n. 27 Pontelatone CE domicilio Via Gagarin 52 Bettolle ","Bettolle","Infanzia"]
[393,null,null,null,"5^ Fascia",null,"JAHJIC Eddy            ","Via Paganini, 4/b   ","Pieve","3/B Pieve          "]
[553,null,null,null,"5^ Fascia",null,"JAHJIC Fatima"]
[552,null,null,null,"5^ Fascia",null,"JAHJIC Medina"]
[69,"JAWICZ MAREK","JWCMRK84B19Z127L",4187.3,"1^ Fascia",null,"JAWICZ Gabriel         ","Via dell'Unità, 3   ","Pieve","2/A Pieve         "]
[68,"JAWICZ MAREK","JWCMRK84B19Z127L",4187.3,"1^ Fascia",null,"JAWICZ Julia","Via dell'Unità, 3","Sinalunga","Inf. Sin.C"]
[132,"JOURAIRI NORA","JRRMJB66B25Z330W",7398.97,"2^ Fascia",null,"JOURAIRI Bilal","Via Fiume, 16","Sinalunga","Inf. Sin.A"]
[133,"JOURAIRI NORA","JRRMJB66B25Z330W",7398.97,"2^ Fascia",null,"JOURAIRI Nora            ","Via Fiume, 16       ","Pieve","2/A Pieve         "]
[34,"SINGH  Baj","SNGBJA78H25Z222A",1851.06,"1^ Fascia",null,"KAUR Armandeep","Via Trieste, 131","Sinalunga","Inf. Sin.F"]
[54,"SINGH Mohan","SNGMHN70E31Z222S",3759.32,"1^ Fascia",null,"KAUR Avreet","Via Trasimeno, 69","Bettolle","Inf. Bett.B"]
[41,"TAMBAD LALA","TMBLLA77B01Z222Y",2732.81,"1^ Fascia",null,"KAUR JESMIN          ","Via Trieste, 210/B  ","Pieve","1^ Pieve         "]
[56,"SINGH Kulbir","SNGKBR75E20Z222I",3909.05,"1^ Fascia",null,"Kaur Panit","Via Piave, 50       ","Pieve","1^ Pieve         "]
[394,null,null,null,"5^ Fascia",null,"KAZMIRUK Davide          ","Viale Trieste, 189  ","Pieve","4/A Pieve         "]
[115,"KICI Mirjeta","KCIMJT89E60Z100P",6653.5,"2^ Fascia",null,"KICI Anita           ","Via L. Nencetti, 26 ","Pieve","2/B Pieve       "]
[114,"KICI Mirjeta","KCIMJT89E60Z100P",6653.5,"2^ Fascia",null,"KICI Arjon","Via Licio Nencetti, 5","Sinalunga","Inf. Sin.A"]
[66,"LAHRECH Abdelouahab","LHRBLH65T28Z330S",4101.26,"1^ Fascia",null,"LAHRECH Adam            ","Via Garda 13a  ","Pieve","1^ Pieve         "]
[395,null,null,null,"5^ Fascia",null,"LASCHI Alice           ","Via Sacco, 1        ","Pieve","2/B Pieve       "]
[134,"FORCINITI STEFANIA","FRCSFN77C70D184G",7461.73,"2^ Fascia",null,"LAURENZANO Giorgia","Via P. Togliatti, 27","Bettolle","Inf. Bett.A"]
[396,null,null,null,"5^ Fascia",null,"LAZZARI Diego","Via Puccini, 28","Bettolle","Inf. Bett.D"]
[397,null,null,null,"5^ Fascia",null,"LAZZERINI Greta           ","Via dell'Olivo, 16 -","Pieve","1^ Pieve         "]
[98,"LOMARTIRE GAETANA","LMRGTN71H61L049F",5446.76,"1^ Fascia",null,"LEO Mattia          ","Via Napoli, 10      ","Pieve","1^ Pieve         "]
[110,"LETI KRISTINA","LTEKST86R51Z100H",6374.35,"1^ Fascia",null,"LETI Alessia","Via Licio Nencetti, 13","Sinalunga","Inf. Sin.A"]
[398,null,null,null,"5^ Fascia",null,"LETI Gabriele        ","Via Paganini, 4/B   ","Pieve","1^ Pieve         "]
[121,"MHILLI DAFINE","MHLDFN805S70Z100T",6999.11,"2^ Fascia",null,"LETI Kastriot        ","Via Colonna, 89     ","Pieve","2/A Pieve         "]
[65,"LETI MERITA","LTEMRT83D48Z100T",4093.35,"1^ Fascia",null,"LETI Renato          ","Via Cappella, 25    ","Pieve","1^ Pieve         "]
[73,"RODRIGUEZ ANA MERCEDES","RDRNRC89H65Z505B",4367.32,"1^ Fascia",null,"LEYBA RODRIGUEZ Anabel","Via L. Nencetti, 26","Sinalunga","Inf. Sin.A"]
[399,null,null,null,"5^ Fascia",null,"LILIU Isabel","Via dei Procacci, 19","Sinalunga","Inf. Sin.D"]
[208,"TAVANTI Erica","TVNRKE87M47A390E",11943.68,"3^ Fascia",null,"LIPARI Sofia","Via dei Fossi, 15","Sinalunga","Inf. Sin.A"]
[400,null,null,null,"5^ Fascia",null,"LIPPI Margherita      ","Loc. Vainiglia, 45/A","Pieve","5/B Pieve         "]
[164,"LOCA ALFRED","LCOLRD80C20Z100O",9428.5499999999993,"2^ Fascia",null,"LOCA Nelsi           ","Viale Trieste, 97   ","Pieve","2/B Pieve       "]
[401,null,null,null,"5^ Fascia",null,"LUCHERONI Matilde         ","Via Aldo Moro, 50   ","Pieve","3/B Pieve          "]
[31,"DI LEO ANNA","DLINNA81A45E245E",1812.55,"1^ Fascia",null,"LUNGARELLA Chiara","Via del giglio, 8","Sinalunga","Inf. Sin.A"]
[33,"DI LEO ANNA","DLINNA81A45E245E",1812.55,"1^ Fascia",null,"LUNGARELLA Daniele         ","Via del Giglio, 8   ","Pieve","1^ Pieve         "]
[32,"DI LEO ANNA","DLINNA81A45E245E",1812.55,"1^ Fascia",null,"LUNGARELLA Paolo","Via del Giglio, 8","Sinalunga","Inf. Sin.A"]
[402,null,null,null,"5^ Fascia",null,"LUNGHINI Matilde         ","Via dello Spedale, 2","Pieve","1^ Pieve         "]
[403,null,null,null,"5^ Fascia",null,"MACCARI Tommaso","Via Leopardi, 16","Bettolle","Inf. Bett.B"]
[25,"MAGHINI Abbess","MGHBBS73A01Z330N",1353.87,"1^ Fascia",null,"MAGHINI Anas            ","Via Licio Nencetti, 19 ","Pieve","5/A Pieve        "]
[26,"MAGHINI Abbess","MGHBBS73A01Z330N",1353.87,"1^ Fascia","2^ Figlio","MAGHINI Hajar           ","Via Licio Nencetti, ","Pieve","1^ Pieve         "]
[406,null,null,null,"5^ Fascia",null,"MAGI Filippo         ","Via delle Gore, 251 ","Sinalunga","3/C Media       "]
[161,"MAIORANO GABRIELE","MRNGLRL79L07E245X",9334.16,"2^ Fascia",null,"MAIORANO Leonor          ","Via 2 giugno, 26/A  ","Pieve","5/B Pieve         "]
[173,"MAIORANO ANTONIO","MRNNTN68A17E245H",10023.530000000001,"3^ Fascia",null,"MAIORANO Matteo          ","Via della Liberta', 6","Pieve","3/B Pieve          "]
[162,"MAIORANO GABRIELE","MRNGLRL79L07E245X",9334.16,"2^ Fascia","2^ Figlio","MAIORANO Naomi           ","Via II giugno, 26/A ","Pieve","3/B Pieve          "]
[407,null,null,null,"5^ Fascia",null,"MAIORANO Nicola          ","Via Giorgio Amendola 14","Pieve","5/B Pieve         "]
[137,"ESPOSITO MARIA SANTA","SPSMSN82D60I483N",8000.41,"2^ Fascia",null,"MALINCONICO Enia","Via Siena, 14","Bettolle","Inf. Bett.A"]
[197,"Sorrentino Michela Nunzia","SRRMHL79S41L259F",11531.47,"3^ Fascia",null,"MALINCONICO Eugenia         ","Via Molinara 11/A   ","Pieve","2/A Pieve         "]
[103,"MANDALA' GIUSEPPE","MNDGPP88L09G273J",5942.29,"1^ Fascia",null,"MANDALA' Melissa Giusy","Via Togliatti, 10","Bettolle","Inf. Bett.A"]
[408,null,null,null,"5^ Fascia",null,"MANERCHIA MASERA' Mattia","Via Torino, 1","Sinalunga","Inf. Sin.B"]
[409,null,null,null,"5^ Fascia",null,"MANNAIONI Gaia","Loc. Pietreto, 42/C","Bettolle","Inf. Bett.A"]
[410,null,null,null,"5^ Fascia",null,"MARCHI Matilde         ","Via di Rigaiolo, 3  ","Pieve","3/A Pieve          "]
[411,null,null,null,"5^ Fascia",null,"MARCHI Niccolo'        ","Via Santarello      ","Pieve","2/B Pieve       "]
[412,null,null,null,{"$f":"IF(D272=\"\",\"5^ Fascia\",IF(D272<=6500,\"1^ Fascia\",IF(AND(D272>6500,D272<=10000),\"2^ Fascia\",IF(AND(D272>10000,D272<=14000),\"3^ Fascia\",IF(AND(D272>14000,D272<=18000),\"4^ Fascia\",\"5^ Fascia\")))))","v":"5^ Fascia"},null,"MARIOTTINI Gregorio        ","Via della Speranza, 13","Pieve","2/C Pieve          "]
[413,null,null,null,"5^ Fascia",null,"MARIOTTONI Tommaso         ","Via Po, 24/A        ","Pieve","1^ Pieve         "]
[414,null,null,null,"5^ Fascia",null,"MARTINELLI Giacomo","Via E. Fermi, 24","Sinalunga","Inf. Sin.A"]
[415,null,null,null,"5^ Fascia",null,"MARTINI Leonardo","Via Traversa della Capanna, 2 - S. Angelo in Colle","Sinalunga","Inf. Sin.D"]
[416,null,null,null,"5^ Fascia",null,"MARTINI Maximus Eric Nelson","Loc. Oliveti, 8","Sinalunga","Inf. Sin.A"]
[417,null,null,null,"5^ Fascia",null,"MARTINI Nicolas         ","Trav. di Via Capanna","Pieve","2/B Pieve       "]
[418,null,null,null,"5^ Fascia",null,"MARZUOLI Erica           ","Via dei Procacci, 12","Pieve","4/B Pieve          "]
[50,"SCARPA GIUSEPPINA","SCRGPP85T57L245J",3641.52,"1^ Fascia",null,"MASELLA Diego","Via Nello Rosselli, 4","Bettolle","Inf. Bett.A"]
[236,"MASSINI SIMONE","MSSSMN72E03A468K",16398.82,"4^ Fascia",null,"MASSINI Aurelio","Via Molinara, 20","Sinalunga","Inf. Sin.F"]
[246,"MASSINI JACOPO","MSSJCP83E01A468M",null,"3^ Fascia",null,"MASSINI Jacopo Junior   ","Loc. Spelaghesi, 120","Pieve","2/B Pieve       "]
[179,"MASSINI JACOPO","MSSJCP83E01A468M",10518.25,{"$f":"IF(D282=\"\",\"5^ Fascia\",IF(D282<=6500,\"1^ Fascia\",IF(AND(D282>6500,D282<=10000),\"2^ Fascia\",IF(AND(D282>10000,D282<=14000),\"3^ Fascia\",IF(AND(D282>14000,D282<=18000),\"4^ Fascia\",\"5^ Fascia\")))))","v":"3^ Fascia"},null,"MASSINI Victoria Benedetta","Via Spelaghesi, 120","Sinalunga","Inf. Sin.A"]
[419,null,null,null,"5^ Fascia",null,"MATARESE Antonio         ","Via Nuova, 44/A     ","Pieve","5/B Pieve         "]
[420,null,null,null,"5^ Fascia","2^ Figlio","MATARESE Matteo          ","Via Nuova, 44/A     ","Pieve","2/C Pieve          "]
[548,null,null,null,"5^ Fascia",null,"MAYE DIEGO","loc. Capacciola 174  Sinalunga","Sinalunga","Infanzia"]
[129,"IZZO AGNESE","ZZIGNS81P61L259A",7242,"2^ Fascia",null,"MAZZACANE Francesca Pia","Via Cassia,","Sinalunga","Inf. Sin.D"]
[130,"IZZO AGNESE","ZZIGNS81P61L259A",7242,"2^ Fascia",null,"MAZZACANE Micaela         ","Via Cassia, 115     ","Pieve","1^ Pieve         "]
[422,null,null,null,"5^ Fascia",null,"MAZZUOLI Greta","Via G. Verga, 12/B","Bettolle","Inf. Bett.C"]
[424,null,null,null,"5^ Fascia",null,"MEMA Genti","Via Siena,40","Bettolle","Inf. Bett.A"]
[426,null,null,null,"5^ Fascia",null,"MENICONI Vittoria        ","Viale Trieste, 50   ","Pieve","1^ Pieve         "]
[428,null,null,null,"5^ Fascia",null,"MEOCCI Giulia          ","Via Dante, 1        ","Sinalunga","2/C Media"]
[427,null,null,null,"5^ Fascia","2^ Figlio","MEOCCI Pietro          ","Via Dante 1","Pieve","5/B Pieve         "]
[172,"ZAPPIA LOREDANA","ZPPLDN71C70F106T",9943.2099999999991,"2^ Fascia",null,"MERCURI Nicola          ","Via Pescaiole, 11   ","Sinalunga","3/C Media       "]
[221,"GERU AURELIA","GRERLA80B45Z129Q",14237.88,"4^ Fascia",null,"MIHAI Francesco Ovidiu","Piazza XX Settembre,","Pieve","1^ Pieve         "]
[551,null,null,null,"5^ Fascia",null,"MIRAGLIA Margherita Lea","Via dell'OPERA, 5 SINALUNGA","Infanzia","Sinalunga 1/D"]
[429,null,null,null,"5^ Fascia",null,"MIRCHEVA Gabriela Naydeno","Via Rigaiolo, 18    ","Pieve","1^ Pieve         "]
[430,null,null,null,"5^ Fascia",null,"MONNANNI Leonardo","Via Trasimeno, 7","Bettolle","Inf. Bett.B"]
[431,null,null,null,"5^ Fascia",null,"MONTAUTI Lorenzo         ","Strada di Santarello","Pieve","3/A Pieve          "]
[432,null,null,null,"5^ Fascia",null,"MONTESANO Asia            ","Via Nello Boscagli, 2","Sinalunga","2/C Media"]
[433,null,null,null,"5^ Fascia",null,"MONTORO Valentina","Via Ravenna, 14/D","Bettolle","Inf. Bett.A"]
[434,null,null,null,"5^ Fascia",null,"MORELLI Vittoria        ","Via Edoardo de Filippo, 3","Pieve","1^ Pieve         "]
[435,null,null,null,"5^ Fascia",null,"MORLINO Alessio         ","Via Dante Alighieri, 11a","Pieve","5/B Pieve         "]
[436,null,null,null,"5^ Fascia","2^ Figlio","MORLINO Sara            ","Via Dante, 11/A     ","Pieve","1^ Pieve         "]
[437,null,null,null,"5^ Fascia",null,"MOSCONI Elide","Via Chico Mendes, 19","Bettolle","Inf. Bett.C"]
[243,"CUBEDDU ANGELICA","CBDNLC86B42G113C",3917.85,"1^ Fascia",null,"MURA Eleonora        ","Località Palazzolo, 14","Sinalunga","3/C Media       "]
[439,null,null,null,"5^ Fascia",null,"NANNI Giorgia         ","Via Marzabotto, 42  ","Pieve","2/A Pieve         "]
[440,null,null,null,"5^ Fascia",null,"NANNOTTI Andrea","Loc. SODOLARGO, 98/A","Bettolle","Inf. Bett.B"]
[14,"NAUNI ARDIAN","NNARDN71S16Z100N",0,"1^ Fascia",null,"NAUNI Sebastiano      ","Via Piave, 17       ","Pieve","5/A Pieve        "]
[13,"NAUNI ARDIAN","NNARDN71S16Z100N",0,"1^ Fascia",null,"NAUNI Serena","Via Piave, 17","Sinalunga","Inf. Sin.F"]
[7,"EFETIMIE MARIANA","FTMMRN81C62Z129L",0,"1^ Fascia",null,"NEDIEANU Stefan Richard  ","Loc. Monsone, 29/A  ","Pieve","4/B Pieve          "]
[107,"LOFFREDO ANTONELLA","LFFNNL87C52A512W",6242.84,"1^ Fascia",null,"NEGRO Emanuela","Via Duca, 11/I","Bettolle","Inf. Bett.A"]
[442,null,null,null,"5^ Fascia",null,"NICOLOSI Martina         ","Via W. Tobagi, 22   ","Pieve","2/A Pieve         "]
[443,null,null,null,"5^ Fascia",null,"NIGITO Mattia          ","Via Trento, 218     ","Pieve","1^ Pieve         "]
[444,null,null,null,"5^ Fascia",null,"NIRAGIRA Ginevra","Via Umberto I, 55","Sinalunga","Inf. Sin.E"]
[445,null,null,null,"5^ Fascia",null,"NIRAGIRA Lorenzo         ","Via Umberto I, 55   ","Pieve","2/A Pieve         "]
[211,"DENTINI DORIANA","DNTDRN57P55C309Z",12473.05,"3^ Fascia",null,"NISI Veronica","Via della Petraglia, 33","Sinalunga","Inf. Sin.D"]
[131,"NOLI UGO","NLOGUO32M26A468A",7376.96,"2^ Fascia",null,"NOLI Serenamaria     ","Via del Popolo, 14  ","Sinalunga","1/C Media       "]
[92,"NOSAL Marek Edward","NSLMKD71E03Z127H",5256.99,"1^ Fascia","2^ Figlio","NOSAL Natalia Anna    ","Via della Speranza, 37","Pieve","4/B Pieve          "]
[93,"NOSAL Marek Edward","NSLMKD71E03Z127H",5256.99,"1^ Fascia",null,"NOSAL Patryk Marek    ","Via della Speranza, 37","Sinalunga","2/C Media"]
[248,null,null,null,"5^ Fascia",null,"NOZZA TONON LEILA","Foiano Della Chiana Via Del Duca 169/B","Sinalunga","Inf"]
[138,"NUCCI SALLY LUKLA","NCCSLY12R67F592I",8000.69,"2^ Fascia",null,"NUCCI Sally Lukla","Via Cacciaconti, 5","Bettolle","Inf. Bett.B"]
[446,null,null,null,"5^ Fascia",null,"OGLIALORO Lorenzo         ","Piazzetta Arno, 1   ","Sinalunga","2/C Media"]
[99,"OMERI Bajram","MROBRM72C20Z160W",5662.93,"1^ Fascia",null,"OMERI Amet","Via Po,32","Sinalunga","Inf. Sin.A"]
[244,"DE SIMONE CARLA","DSMCRL70P51F839H",231.77,"1^ Fascia",null,"ONORATO Alessio         ","Via Casalpiano, 20  ","Sinalunga","1/C Media       "]
[101,"OROS ADRIAN","RSODRN77P04Z129P",5919.11,{"$f":"IF(D325=\"\",\"5^ Fascia\",IF(D325<=6500,\"1^ Fascia\",IF(AND(D325>6500,D325<=10000),\"2^ Fascia\",IF(AND(D325>10000,D325<=14000),\"3^ Fascia\",IF(AND(D325>14000,D325<=18000),\"4^ Fascia\",\"5^ Fascia\")))))","v":"1^ Fascia"},"2^ Figlio","OROS Larisa Elena    ","Via dei Fossi, 4    ","Pieve","2/C Pieve          "]
[102,"OROS ADRIAN","RSODRN77P04Z129P",5919.11,"1^ Fascia",null,"OROS Lorenzo Andrei  ","Via dei Fossi, 4    ","Pieve","5/B Pieve         "]
[204,"OSMANI BEKIM","SMNBKM86M23Z160N",11704.5,"3^ Fascia",null,"OSMANI Berina          ","Via Cappella,19     ","Pieve","2/B Pieve       "]
[203,"OSMANI BEKIM","SMNBKM86M23Z160N",11704.5,"3^ Fascia",null,"OSMANI Dalis","Via Trento 196b","Sinalunga","Inf. Sin.A"]
[74,"OSMANI Ismet","SMNSMT66H09Z118V",4398.59,"1^ Fascia",null,"OSMANI Deina","Via A. Gramsci, 47","Sinalunga","Inf. Sin.A"]
[251,null,null,null,"5^ Fascia",null,"PACELLI Alessandro      ","Via  Berlinguer, 23 ","Pieve","1^ Pieve         "]
[448,null,null,null,"5^ Fascia",null,"PAGGETTI Pietro","Via dell'Ospizio, 4/A","Sinalunga","Inf. Sin.E"]
[104,"PAL JASWINDER","PLAJWN85D14Z222H",5942.43,"1^ Fascia",null,"PAL Rohit","Via P. Neruda, 1","Bettolle","Inf. Bett.C"]
[449,null,null,null,"5^ Fascia","2^ Figlio","PALAZZINI Beatrice        ","Località Santa Cristina","Pieve","1^ Pieve         "]
[36,"PALAZZINI FABIO","PLZVEA08R47A390S",2535.56,"1^ Fascia","2^ Figlio","PALAZZINI Eva             ","Via Nuova, 40/A     ","Pieve","3/B Pieve          "]
[37,"PALAZZINI FABIO","PLZVEA08R47A390S",2535.56,"1^ Fascia",null,"PALAZZINI Giulio          ","Via Nuova, 40/A     ","Pieve","3/B Pieve          "]
[450,null,null,null,"5^ Fascia",null,"PALAZZINI Margherita      ","Loc. Santa Cristina,","Pieve","3/A Pieve          "]
[451,null,null,null,"5^ Fascia",null,"PALAZZONI Benedetta       ","Via Gamberoni di Sop","Pieve","2/A Pieve         "]
[453,null,null,null,"5^ Fascia",null,"PALMERINI GRETA","Via Pablo Picasso,16","Bettolle","Inf. Bett.A"]
[457,null,null,null,"5^ Fascia",null,"PALMERINI Juri            ","Via Mascagni, 2/A   ","Sinalunga","3/C Media       "]
[455,null,null,null,"5^ Fascia","2^ Figlio","PALMERINI Mattia          ","Via Mascagni, 2/A   ","Pieve","5/A Pieve        "]
[454,null,null,null,"5^ Fascia",null,"PALMERINI Teresa","Via Serraglio, 256/A","Sinalunga","Inf. Sin.E"]
[456,null,null,null,"5^ Fascia",null,"PALMERINI Tommaso         ","Via Serraglio, 256/A","Pieve","3/B Pieve          "]
[40,"VITI ELISA","VTILSE75E60A468R",2713.07,"1^ Fascia",null,"PAOLUCCI Ettore          ","Via Serraglio, 226  ","Pieve","5/B Pieve         "]
[458,null,null,null,"5^ Fascia",null,"PAOLUCCI Martina","Via D. Bramante, 22L","Sinalunga","Inf. Sin.A"]
[234,"PAPA ANTONIO","PPANTN70M14F352W",16342.9,"4^ Fascia",null,"PAPA Angela Maria","Via Enzo Ferrari, 30","Sinalunga","Inf. Sin.B"]
[235,"PAPA ANTONIO","PPANTN70M14F352W",16342.9,"4^ Fascia",null,"PAPA Michele","Via E. Ferrari, 30","Sinalunga","Inf. Sin.A"]
[459,null,null,null,"5^ Fascia",null,"PAPALEO Daniele","Via E. de Filippo, 16","Sinalunga","Inf. Sin.C"]
[195,"PAPPALARDO MODESTINO","PPPMST8C10F839O",11413.5,"3^ Fascia",null,"PAPPALARDO Denise          ","Via N. Boscagli, 4  ","Pieve","2/C Pieve          "]
[194,"PAPPALARDO MODESTINO","PPPMST8C10F839O",11413.5,"3^ Fascia",null,"PAPPALARDO Irene","Via N. Boscagli, 4","Sinalunga","Inf. Sin.A"]
[214,"PARADOSSI MATTEO","PRDMTT82E24A468R",13369.21,"3^ Fascia",null,"PARADOSSI Flavio","Via Boito,9","Bettolle","Inf. Bett.A"]
[460,null,null,null,"5^ Fascia",null,"PARADOSSI Giacomo         ","Via della Resistenza 39","Pieve","1^ Pieve         "]
[180,"PARAT ROBERT STANISLAW","PRTRRT80L14Z127Z",10636.1,"3^ Fascia",null,"PARAT Jakub","Via V. Alfieri, 15","Bettolle","Inf. Bett.D"]
[462,null,null,null,"5^ Fascia",null,"PARRI Francesco       ","Via Grassi, 28      ","Pieve","3/A Pieve          "]
[207,"POLVANI PAOLA","PLVPLA77L46A468U",11898.85,"3^ Fascia",null,"PARRI Sofia           ","Via Grassi, 28      ","Pieve","3/B Pieve          "]
[120,"MICELI Sabrina Rosalia","MCLSRN89H53G273P",6845.72,"2^ Fascia",null,"PARZANESE Riccardo","Via Trento, 116","Sinalunga","Inf. Sin.A"]
[126,"PATERNOSTRO STEFANO","PTRSFN68S20L589J",7125.57,"2^ Fascia",null,"PATERNOSTRO      Fabiana         ","Via E. de Filippo, 3","Sinalunga","2/C Media"]
[91,"PERILLO PASCQUALE","PRLPQL91C22E932T",5189.22,{"$f":"IF(D357=\"\",\"5^ Fascia\",IF(D357<=6500,\"1^ Fascia\",IF(AND(D357>6500,D357<=10000),\"2^ Fascia\",IF(AND(D357>10000,D357<=14000),\"3^ Fascia\",IF(AND(D357>14000,D357<=18000),\"4^ Fascia\",\"5^ Fascia\")))))","v":"1^ Fascia"},null,"PERILLO Emily","Via del Crocifisso, 6","Sinalunga","Inf. Sin.A"]
[465,null,null,null,"5^ Fascia",null,"PERINTI Davide          ","Via C. Goldoni, 2   ","Pieve","2/A Pieve         "]
[466,null,null,null,"5^ Fascia",null,"PERINTI Giada Rita      ","Via della Valle, 11 ","Pieve","3/B Pieve          "]
[467,null,null,null,"5^ Fascia","2^ Figlio","PERINTI Matteo","Via della Valle, 11  ","Pieve","1^ Pieve         "]
[232,"CHIAPPELLO LETIZIA","CHPLTZ77R66D7O8B",16238.33,"4^ Fascia","2^ Figlio","PERSECHINO  Emanuele Simone ","Via Emoriccia, 280  ","Pieve","4/A Pieve         "]
[233,"CHIAPPELLO LETIZIA","CHPLTZ77R66D7O8B",16238.33,"4^ Fascia",null,"PERSECHINO Daniele         ","Via Emoriccia, 280  ","Sinalunga","3/C Media       "]
[100,"GRAGNOLI MARTA","GRGMRT78T70A468L",5725.64,"1^ Fascia",null,"PERUZZI Andrea","Via delle Mura, 2","Sinalunga","Inf. Sin.A"]
[468,null,null,null,"5^ Fascia",null,"PERUZZI Sara","Via Ravenna, 10","Bettolle","Inf. Bett.D"]
[183,"BARTOLI GIULIA","BRTGLI85C52A468S",10668.82,"3^ Fascia",null,"PERUZZI Sebastiano","Via dei Colli, 42","Sinalunga","Inf. Sin.A"]
[240,"SARAGAGLIA ROSA","SRGRSO71E41C983A",17605.59,"4^ Fascia",null,"PESJAKA Jasmine         ","Via Marzabotto, 39/A","Pieve","3/A Pieve          "]
[469,null,null,null,"5^ Fascia","2^ Figlio","PETRINI Cristian Iago   ","Via dei Frati, 37/A ","Pieve","3/A Pieve          "]
[470,null,null,null,"5^ Fascia",null,"PETRINI Daniel Brais    ","Via dei Frati, 37/A ","Pieve","5/A Pieve        "]
[113,"TANEV MITKO PETROV","TNVMKP78S02Z104M",6603.03,"2^ Fascia",null,"PETROV Biser Mitev"]
[174,"PEZZOLI MARCO","PZZMRC77T21A468R",10108.68,"3^ Fascia",null,"PEZZUOLI Maya","Via Marzabotto, 39/A","Sinalunga","Inf. Sin.A"]
[185,"D'ANDREA DANIELA","DNDDNL79E62A468L",10921.88,"3^ Fascia",null,"PICCIOLINI Aurora          ","Loc. Poggigialli, 15","Pieve","4/A Pieve         "]
[471,null,null,null,"5^ Fascia",null,"PIERAMICI Anita","Via S. Cristina, 113","Sinalunga","Inf. Sin.E"]
[472,null,null,null,"5^ Fascia",null,"PIERAMICI Ginevra","Loc. Santa Cristina, 113","Sinalunga","Inf. Sin.C"]
[473,null,null,null,"5^ Fascia",null,"PIEROZZI Giulio          ","Via del Sodello, 1  ","Sinalunga","1/C Media       "]
[474,null,null,null,"5^ Fascia",null,"PINSUTI Edoardo         ","Loc. Santarello, 131","Pieve","1^ Pieve         "]
[475,null,null,null,"5^ Fascia",null,"PIROZZI Marco           ","Via della Libertà, 2","Pieve","2/B Pieve       "]
[150,"DE MASI DENISE","DMSDNS88R41F839D",8693.17,"2^ Fascia",null,"PISCITELLI Edoardo         ","Via Delle Persie, 97","Pieve","1^ Pieve         "]
[149,"DE MASI DENISE","DMSDNS88R41F839D",8693.17,"2^ Fascia",null,"PISCITELLI Suami","Via delle Persie, 97/D","Sinalunga","Inf. Sin.F"]
[476,null,null,null,"5^ Fascia",null,"PLATANIA Agata           ","Via Paganini, 34    ","Pieve","3/A Pieve          "]
[192,"PASQUINI VERONICA","PSQVNC82A56A468Q",11364.56,"3^ Fascia",null,"PONTREMOLI Elia","Via Siena,49","Bettolle","Inf. Bett.A"]
[135,"DI RENZONE GAIA","DRNGAI76D64A468I",7513.82,"2^ Fascia",null,"PRESENTINI  Stefano","Loc Rigailo Alto, 292/a","Sinalunga","Inf. Sin.A"]
[478,null,null,null,"5^ Fascia",null,"PRESENTINI Ettore          ","Via A. Gramsci, 121 ","Pieve","1^ Pieve         "]
[230,"PUGLIA ANTONIO","PGLNTN82R25F839P",15781.61,"4^ Fascia",null,"PUGLIA Alessia","Via E. Ferrari, 28","Sinalunga","Inf. Sin.D"]
[231,"PUGLIA ANTONIO","PGLNTN82R25F839P",15781.61,"4^ Fascia",null,"PUGLIA Annamaria       ","Via E. Ferrari, 28  ","Pieve","2/C Pieve          "]
[182,"SICA VALERIA","SCIVLR80E41F839Z",10652.44,"3^ Fascia",null,"PUGLIA Giuseppe        ","Via Paganini, 24    ","Pieve","2/B Pieve       "]
[181,"SICA VALERIA","SCIVLR80E41F839Z",10652.44,"3^ Fascia",null,"PUGLIA Laura","Via Paganini, 24","Sinalunga","Inf. Sin.C"]
[224,"FARSI LETIZIA","FRSLTZ84P51C085R",14596.87,"4^ Fascia",null,"PUOPOLO Asia","Piazza Lucioli Elvio,20","Bettolle","Inf. Bett.A"]
[225,"FARSI LETIZIA","FRSLTZ84P51C085R",14596.87,{"$f":"IF(D388=\"\",\"5^ Fascia\",IF(D388<=6500,\"1^ Fascia\",IF(AND(D388>6500,D388<=10000),\"2^ Fascia\",IF(AND(D388>10000,D388<=14000),\"3^ Fascia\",IF(AND(D388>14000,D388<=18000),\"4^ Fascia\",\"5^ Fascia\")))))","v":"4^ Fascia"},null,"PUOPOLO Aurora","Piazza Lucioli Elvio,20","Bettolle","Inf. Bett.A"]
[480,null,null,null,"5^ Fascia",null,"PUOPOLO Giulio          ","Via Casalpiano, 14/A","Sinalunga","2/C Media"]
[141,"PUSCARU EUGEN GEORGEL","PSCGGR73L19Z129C",8271.7900000000009,"2^ Fascia",null,"PUSCARU Aurora          ","Viale Trieste, 42   ","Pieve","3/A Pieve          "]
[481,null,null,null,"5^ Fascia",null,"QUINTI Jacopo","Via Scoccimarro, 17","Bettolle","Inf. Bett.A"]
[482,null,null,null,"5^ Fascia",null,"QUINTI Mattia          ","Via Pio II, 7       ","Pieve","3/B Pieve          "]
[483,null,null,null,"5^ Fascia",null,"RACHINI Camilla         ","Via dei Frati, 2    ","Sinalunga","2/C Media"]
[77,"RAKIBSI ABDELAZIZ","RKBBLZ61A01Z330X",4668.2,"1^ Fascia",null,"RAKIB Basma","Via della Speranza, 30","Sinalunga","Inf. Sin.B"]
[487,null,null,null,"5^ Fascia","2^ Figlio","RENZINI Caterina        ","Via Fiorenzuola, 11 ","Sinalunga","1/C Media       "]
[486,null,null,null,"5^ Fascia",null,"RENZINI Chiara          ","Via Fiorenzuola, 11/","Sinalunga","2/C Media"]
[29,"RICCIO GIUSEPPE","RCCGPP58S22F839X",1601.84,"1^ Fascia",null,"RICCIO Vincenzo        ","Via della Liberta', 10","Pieve","3/A Pieve          "]
[193,"ROCCHI Mario","RCCMRA56H14A468L",11367.22,"3^ Fascia",null,"ROCCHI Filippo         ","Via del Sole, 3     ","Pieve","4/B Pieve          "]
[15,"ROCI HAZIS","RCOHZS79A05Z100F",0,"1^ Fascia",null,"ROCI Melissa         ","Via della Pietraia, 18","Pieve","2/C Pieve          "]
[490,null,null,null,"5^ Fascia",null,"ROFANI Caterina","Via Bachelet, 41","Bettolle","Inf. Bett.A"]
[491,null,null,null,"5^ Fascia",null,"ROGGI Francesca       ","Via Voltella, 108   ","Pieve","5/B Pieve         "]
[62,"CINQUEGRANO TOMMASO","CNQTMS48E25A064G",4026.1,"1^ Fascia",null,"ROMANO Gioacchino Pio  ","Via Trento, 223     ","Sinalunga","3/C Media       "]
[44,"PERROTTA GIUSEPPINA","PRRGPP83H57A024V",3221.07,"1^ Fascia",null,"ROMANO Pasquale","Via Busso, 80","Sinalunga","Inf. Sin.C"]
[61,"CINQUEGRANO TOMMASO","CNQTMS48E25A064G",4026.1,"1^ Fascia","2^ Figlio","ROMANO Tommaso         ","Via Trento, 223     ","Pieve","5/A Pieve        "]
[60,"CINQUEGRANO TOMMASO","CNQTMS48E25A064G",4026.1,"1^ Fascia",null,"ROMANO Vincenzo","Via Trento, 223","Sinalunga","Inf. Sin.E"]
[492,null,null,null,"5^ Fascia",null,"RONGA Martina","Via Giovanni Verga, 12/F","Bettolle","Inf. Bett.B"]
[175,"MARRA GIUSEPPINA","MRRGPP70D649I",10310.780000000001,"3^ Fascia",null,"ROSADINI Viola",null,null,"3 Pieve"]
[493,null,null,null,"5^ Fascia",null,"ROSATI Elisabetta","Viale Trieste, 260","Sinalunga","Inf. Sin.A"]
[148,"AGNELLI GRAZIA","GNLGRZ64D70A468J",8652.44,"2^ Fascia",null,"ROSATI Lorenzo         ","Via della Pace, 5   ","Pieve","5/B Pieve         "]
[494,null,null,null,"5^ Fascia",null,"ROSIGNOLI Matteo          ","Via Dante, 20       ","Sinalunga","2/C Media"]
[495,null,null,null,"5^ Fascia",null,"ROSSI Valentina       ","Via Emoriccia, 266/A","Pieve","5/A Pieve        "]
[215,"Rudenko Dmytro","RDNDYT88A04Z112P",13410.86,"3^ Fascia",null,"RUDENKO Natan","Loc. Rigaiolo, 12","Sinalunga","Inf. Sin.A"]
[64,"BORISIVA TANYA ANGELOVA","BRSTYN75H47Z104X",4060.57,"1^ Fascia",null,"RUSEVA Teodora Ruseva","Via Caselle Alte, 99","Bettolle","Inf. Bett.D"]
[497,null,null,null,"5^ Fascia",null,"RUSSO Samuele         ","Via Guiduccio 304     ","Pieve","3/A Pieve          "]
[156,"Amendola Federica","MNDFRC86E63L259M",9037.61,"2^ Fascia",null,"RUVO Gabriele","Via Y. Gagarin,56","Bettolle","Inf. Bett.A"]
[81,"MOUHALI NADIA","MHLLNDA68S43Z330B",4790.62,"1^ Fascia",null,"SABAR Douaa           ","Via W. Tobagi, 5    ","Pieve","5/A Pieve        "]
[499,null,null,null,"5^ Fascia",null,"SABATINI Emma            ","Via Po, 36          ","Pieve","5/A Pieve        "]
[498,null,null,null,{"$f":"IF(D418=\"\",\"5^ Fascia\",IF(D418<=6500,\"1^ Fascia\",IF(AND(D418>6500,D418<=10000),\"2^ Fascia\",IF(AND(D418>10000,D418<=14000),\"3^ Fascia\",IF(AND(D418>14000,D418<=18000),\"4^ Fascia\",\"5^ Fascia\")))))","v":"5^ Fascia"},null,"SABATINI Fabio","Via Po, 36","Sinalunga","Inf. Sin.D"]
[501,null,null,null,"5^ Fascia",null,"SABATINO Fabiana         ","Via Paganini, 3     ","Sinalunga","2/C Media"]
[500,null,null,null,"5^ Fascia","2^ Figlio","SABATINO Martina         ","Via Paganini, 3     ","Pieve","2/A Pieve         "]
[205,"SAIPI SANIDA","SPASND90A61Z160Z",11710.13,"3^ Fascia",null,"SAIPI Halisa"]
[139,"SALEM MOHAMED","SLMMMD66A01Z3P0O",8068.77,"2^ Fascia",null,"SALEM Yahya","Via Trasimeno, 32","Bettolle","Inf. Bett.A"]
[16,"SAMB MOMAR TALLA","SMBMRT73M20Z343R",0,"1^ Fascia",null,"SAMB Mouhamed        ","Via VIII maggio, 1  ","Pieve","5/B Pieve         "]
[112,"SAMBARE PHILIBERT","SMBPLB80A01Z354G",6475.2,"1^ Fascia",null,"SAMBARE Lorenzo","Via Trento, 54","Sinalunga","Inf. Sin.F"]
[503,null,null,null,"5^ Fascia",null,"SAMELE Giuseppe        ","Via della Resistenza","Pieve","5/A Pieve        "]
[504,null,null,null,"5^ Fascia",null,"SCAPERROTTA Camilla","Via Corridore,183","Bettolle","Inf. Bett.A"]
[96,"RODRIGUEZ IZZO MARIA DLE CARMEN","RDRMDL68H67B963R",5389.62,"1^ Fascia",null,"SCARAMELLA Samuele         ","Via Francia 9 a Torrita di Siena","Pieve","3/B Pieve          "]
[52,"SCARSELLI GIANNI","SCRGNN65E11A390E",3676,"1^ Fascia",null,"SCARSELLI Fares           ","Via della Speranza, ","Pieve","5/A Pieve        "]
[51,"SCARSELLI GIANNI","SCRGNN65E11A390E",3676,"1^ Fascia",null,"SCARSELLI Julia","Via della Sperenza, 35","Bettolle","Inf. Bett.D"]
[505,null,null,null,"5^ Fascia",null,"SCOPAIOLI Alex","Via Don Minzoni, 23","Bettolle","Inf. Bett.B"]
[249,"SCORTECCI SIMONE","SCRSMN75S08A390L",14242.36,"4^ Fascia","2^ Figlio","SCORTECCI Manuel          ","Via Montemartino, 67","Pieve","3/A Pieve          "]
[250,"SCORTECCI SIMONE","SCRSMN75S08A390L",14242.36,"4^ Fascia",null,"SCORTECCI Sharon          ","Via Montemartino, 67","Pieve","5/B Pieve         "]
[508,null,null,null,{"$f":"IF(D433=\"\",\"5^ Fascia\",IF(D433<=6500,\"1^ Fascia\",IF(AND(D433>6500,D433<=10000),\"2^ Fascia\",IF(AND(D433>10000,D433<=14000),\"3^ Fascia\",IF(AND(D433>14000,D433<=18000),\"4^ Fascia\",\"5^ Fascia\")))))","v":"5^ Fascia"},null,"SESTIGIANI Gaia            ","Via Fornace, 30     ","Pieve","4/A Pieve         "]
[53,"SIDHU HARPREET","SDHHPR85C06Z222K",3722.16,"1^ Fascia",null,"SIDHU Jessica","Via G. di Vittorio, 7 Bettolle","Bettolle","Infanzia"]
[83,"MOUKAM SORELLE CHRISTINE","MKMSLL74B68Z306Q",4813.3900000000003,"1^ Fascia",null,"SIDIE DJOMAKO Faustine Sergine","Via Colonna, 2/A","Sinalunga","Inf. Sin.E"]
[84,"MOUKAM SORELLE CHRISTINE","MKMSLL74B68Z306Q",4813.3900000000003,"1^ Fascia",null,"SIDIE TCHANKIO Anne Allegra","Via Colonna, 2/A","Sinalunga","Inf. Sin.E"]
[78,"SIMA DENISA MIHAELA","SMIDSM87C41Z129X",4675.4399999999996,"1^ Fascia",null,"SIMA Elena Rebecca","Via del Cassero, 19","Sinalunga","Inf. Sin.B"]
[82,"SIMEONE RINALDO","SMNRLD66D25D644M",4805.59,"1^ Fascia",null,"SIMEONE Francesco Pio","Via Togliatti,42","Bettolle","Inf. Bett.A"]
[97,"Simnica Mehdi","SMNMHD64D25Z160T",5393.1,"1^ Fascia",null,"SIMNICA Ylli            ","Via Zara 22    ","Pieve","5/A Pieve        "]
[142,"SINGH KANWALJIT","SNGKWL75L04Z222Z",8319.41,"2^ Fascia","2^ Figlio","SINGH Arjun           ","Via Nello Boscagli, 29","Pieve","1^ Pieve         "]
[35,"KAUR SURJIT","KRASJT86B51Z222P",2340.16,"1^ Fascia",null,"SINGH Ekamjot","Via Colonna, 29","Sinalunga","Inf. Sin.A"]
[55,"SINGH Kulbir","SNGKBR75E20Z222I",3909.05,"1^ Fascia","2^ Figlio","SINGH Kulraj          ","Via Piave, 50       ","Pieve","1^ Pieve         "]
[143,"SINGH KANWALJIT","SNGKWL75L04Z222Z",8319.41,"2^ Fascia",null,"SINGH Ranveer         ","Via Nello Boscagli, 29","Sinalunga","1/C Media       "]
[190,"PALA Vanessa","PLAVSS81C43F979A",11222.2,"3^ Fascia",null,"SINI Giovanni","Via San Niccolo', 39","Sinalunga","Inf. Sin.D"]
[191,"PALA Vanessa","PLAVSS81C43F979A",11222.2,"3^ Fascia",null,"SINI Matilde         ","Via San Niccolò, 39 ","Pieve","2/A Pieve         "]
[247,null,null,null,"5^ Fascia",null,"SIVIERI ALESSANDRO","via Marinetti, 2 Milano","Sinalunga","Secondaria"]
[510,null,null,null,"5^ Fascia","2^ Figlio","SONNATI Diego           ","Via della Resistenza 2","Pieve","2/C Pieve          "]
[511,null,null,null,"5^ Fascia",null,"SONNATI Samuel          ","Via della Resistenza 2","Pieve","5/B Pieve         "]
[70,"CALABRESE ELIANA","CLBLNE78C45F205R",4192.46,"1^ Fascia","2^ Figlio","SPAGNOLO Anita           ","Via E. De Filippo, 1","Pieve","3/A Pieve          "]
[71,"CALABRESE ELIANA","CLBLNE78C45F205R",4192.46,"1^ Fascia",null,"SPAGNOLO Salvatore       ","Via Eduardo de Filippo 1","Pieve","5/A Pieve        "]
[512,null,null,null,"5^ Fascia",null,"SPATARO Micol","Via Fiume, 48","Sinalunga","Inf. Sin.F"]
[513,null,null,null,"5^ Fascia","2^ Figlio","SPATARO Niccolo'        ","Via Fiume, 48      ","Pieve","3/A Pieve          "]
[514,null,null,null,"5^ Fascia",null,"SPATARO Samuel          ","Via Fiume, 48       ","Sinalunga","1/C Media       "]
[515,null,null,null,"5^ Fascia",null,"STEFANINI Giacomo","Via Rigaiolo, 83/A","Sinalunga","Inf. Sin.A"]
[516,null,null,null,"5^ Fascia",null,"STEFANINI Manuela         ","Via Rigaiolo, 83/A  ","Sinalunga","1/C Media       "]
[58,"ALJI NADIA","LJANDA83E66Z330S",3944.47,"1^ Fascia","2^ Figlio","TABY Amira           ","Via Garda, 24       ","Pieve","2/A Pieve         "]
[59,"ALJI NADIA","LJANDA83E66Z330S",3944.47,"1^ Fascia",null,"TABY Jannat          ","Via Garda, 24       ","Pieve","4/B Pieve          "]
[57,"ALJI NADIA","LJANDA83E66Z330S",3944.47,"1^ Fascia",null,"TABY Naim","Via Garda, 24","Sinalunga","Inf. Sin.A"]
[517,null,null,null,"5^ Fascia",null,"TAKAM KANGA Marylove Schalsy","Via Vittorio Emanuele 29","Sinalunga","3/C Media       "]
[109,"TALENTO FRANCESCO","TLNFNC88T30I234M",6312.6,"1^ Fascia",null,"TALENTO Anna","Via Tiziano, 13 (**)","Bettolle","Inf. Bett.A"]
[518,null,null,null,"5^ Fascia",null,"TANGANELLI Alessio         ","Via L. Sciascia, 26 ","Pieve","2/C Pieve          "]
[520,null,null,null,"5^ Fascia",null,"TAVANTI lorenzo","Via Borsellino, 13","Bettolle","Inf. Bett.A"]
[522,null,null,null,"5^ Fascia",null,"TERZIANI Irene","Via Regina Margherita, 6","Sinalunga","Inf. Sin.F"]
[206,"TIEZZI SIMONE","TZZSMN73H29A468X",11776.34,"3^ Fascia",null,"TIEZZI Diletta","Via Trento, 211","Sinalunga","Inf. Sin.A"]
[524,null,null,null,"5^ Fascia",null,"TIEZZI Gemma           ","Via Enzo Ferrari, 32","Pieve","1^ Pieve         "]
[170,"BRANDINI PAMELA","BRNPML87L45A468G",9722.99,"2^ Fascia",null,"TOMMASSINI Pietro","Via Tempora, 19/A","Bettolle","Inf. Bett.A"]
[75,"TORZONI ALESSANDRO","TRZLSN75B03I726F",4483.6099999999997,"1^ Fascia",null,"TORZONI Aurora          ","Via degli Etruschi, ","Pieve","4/B Pieve          "]
[526,null,null,null,"5^ Fascia",null,"TRIBOLATI Francesco","Via Giovanni XXIII, 14","Bettolle","Inf. Bett.B"]
[89,"TUFA ARBEN","TFURBN70M28Z100R",4971.0600000000004,"1^ Fascia",null,"TUFA Vanesa","Via degli Etruschi, 11/E","Sinalunga","Inf. Sin.B"]
[527,null,null,null,"5^ Fascia",null,"TURCHI Lorenzo","Via Togliatti, 56/B","Bettolle","Inf. Bett.A"]
[528,null,null,null,"5^ Fascia",null,"TURCO Luca            ","Via Enzo Ferrari, 30","Pieve","5/A Pieve        "]
[529,null,null,null,"5^ Fascia",null,"UGOLINI Chiara          ","Via Reddo Basso, 208","Pieve","5/B Pieve         "]
[168,"ULIANO PASQUALE","LNUPQL82S05L245O",9606.2199999999993,"2^ Fascia",null,"ULIANO Ginevra","Piazza Vittorio Emanuele, 5","Bettolle","Inf. Bett.A"]
[531,null,null,null,"5^ Fascia",null,"VALDAMBRINI  Pietro","Via Giacomo Puccini, 21B - GUAZZINO","Bettolle","Inf. Bett.D"]
[530,null,null,null,"5^ Fascia",null,"VALDAMBRINI Viola","Via G.Puccini 2b","Bettolle","Inf. Bett.A"]
[532,null,null,null,"5^ Fascia",null,"VANNI  Ludovico","Via Serrati, 15","Bettolle","Inf. Bett.D"]
[533,null,null,null,"5^ Fascia",null,"VANNUCCINI Carolina","Via J. Gagarin, 9","Bettolle","Inf. Bett.C"]
[116,"VARIGNANI MARCO","VRGMRC83D29D649D",6763.41,"2^ Fascia",null,"VARIGNANI Clea","Via Concionatorio, 5","Sinalunga","Inf. Sin.A"]
[136,"ZENOVIE NICOLETA","ZNVNLT76R65Z129Y",7568.14,"2^ Fascia",null,"VATASELU Orlando Daniele ","Loc. Montemartino, 5","Pieve","4/A Pieve         "]
[245,"Kostadinova Daniela Blagoeva","KSTDLB75R57Z104Y",8719.26,"2^ Fascia",null,"VENANZI Virginia","Via delle Caselle,108","Bettolle","Inf. Bett.A"]
[117,"VENOSO GENNARO","VNSGNR77C16F839P",6809.02,{"$f":"IF(D481=\"\",\"5^ Fascia\",IF(D481<=6500,\"1^ Fascia\",IF(AND(D481>6500,D481<=10000),\"2^ Fascia\",IF(AND(D481>10000,D481<=14000),\"3^ Fascia\",IF(AND(D481>14000,D481<=18000),\"4^ Fascia\",\"5^ Fascia\")))))","v":"2^ Fascia"},null,"VENOSO Antonio","Via Cuico Mendez,9","Bettolle","Inf. Bett.A"]
[118,"VENOSO GENNARO","VNSGNR77C16F839P",6809.02,"2^ Fascia",null,"VENOSO Maria Aurora","Via Chico Mendes, 9","Bettolle","Inf. Bett.D"]
[550,null,null,null,"5^ Fascia",null,"VERDE Diego","V. Voltella, 111","Sinalunga","Infanzia"]
[105,"VESTERLI Oxana","VSTXNO80B54Z255Y",6118.48,"1^ Fascia",null,"VESTERLI Ivan","Via Trento, 54","Sinalunga","Inf. Sin.F"]
[106,"VESTERLI Oxana","VSTXNO80B54Z255Y",6118.48,"1^ Fascia",null,"VESTERLI Sergey          ","VIA TRENTO, 54      ","Sinalunga","1/C Media       "]
[222,"VISALON COSTANTA IRINA","VSLCST68E61Z129V",14240.74,"4^ Fascia",null,"VISALON Alessio         ","Via Enrico de Nicola","Pieve","4/B Pieve          "]
[535,null,null,null,"5^ Fascia",null,"VITI Gianmaria","Viale Trieste, 208","Sinalunga","Inf. Sin.B"]
[536,null,null,null,"5^ Fascia",null,"VITTORI Emily","Via Mascagni, 53","Bettolle","Inf. Bett.A"]
[537,null,null,null,"5^ Fascia",null,"VITTORI Lorenzo","Via Mascagni, 53","Bettolle","Inf. Bett.D"]
[4,"D'AGOSTINO CARMELA","DGSCML73C50Z133S",0,"1^ Fascia",null,"VOCILE Giada           ","Loc. Ceppi 272","Sinalunga","1/C Media       "]
[538,null,null,null,"5^ Fascia",null,"VRANICI Sara            ","Via Ciro Pinsuti, 22","Sinalunga","3/C Media       "]
[539,null,null,null,"5^ Fascia",null,"XIA Junwei","Via Palazzolo, 8","Sinalunga","Inf. Sin.F"]
[127,"CAPOSCIUTTI Marco","CPSMRC78S06A467K",7177.15,"2^ Fascia",null,"YELETSKYI Ruslan          ","Via dei Colli, 12 c/","Sinalunga","3/C Media       "]
[542,null,null,null,"5^ Fascia",null,"ZACCHEI Francesco       ","Via del Giglio, 24  ","Pieve","5/B Pieve         "]
[543,null,null,null,"5^ Fascia",null,"ZACCHEI Ilaria          ","Via Poggioli, 42    ","Pieve","4/A Pieve         "]
[541,null,null,null,"5^ Fascia",null,"ZACCHEI Rachele","Via G. Verga, 12/G","Bettolle","Inf. Bett.C"]
[544,null,null,null,"5^ Fascia",null,"ZANELLI Francesco","Via Santarello, 118/B","Bettolle","Inf. Bett.A"]
[545,null,null,null,"5^ Fascia",null,"ZANELLI Lorenzo         ","Loc. Santarello, 118","Pieve","2/B Pieve       "]
[237,"ZARA PAOLO","ZRAPLA87H01A468H",16787.37,"4^ Fascia",null,"ZARA Francesco","Piazzetta del Castagno, 13","Bettolle","Inf. Bett.D"]

{"sheet":"Foglio1","index":1,"n_rows":0,"n_cols":0,"rows_kept":0,"cut":false,"hidden":false,"merged":[]}

{"sheet":"Foglio2","index":2,"n_rows":0,"n_cols":0,"rows_kept":0,"cut":false,"hidden":false,"merged":[]}